{"text_format":"3","workbook":"xlsx","n_sheets":10,"sheets":["Schedule A - P&G","Schedule B - Automation","Schedule C - Electrical","Schedule D - Civil","Schedule E - Architecture","Schedule F - Quality","Schedule G- Health and Safety ","Schedule H - Environment","Summary","Mechanical"],"not_rendered":{"images":1,"external_links":3,"defined_names":274},"read":"whole","date_system":"1900"}

{"sheet":"Schedule A - P&G","index":0,"n_rows":78,"n_cols":17,"rows_kept":78,"merged":[[1,1,1,6],[1,9,1,11],[3,2,3,5],[3,9,3,11],[46,2,47,2]]}
[]
[null,"TENDER FOR DESIGN, SUPPLY, DELIVERY, INSTALLATION, TESTING, COMMISSIONING AND PUT INTO OPERATION OF THE NEW BASE RADIOS FOR OPERATIONS AND RISK CONTROL AT ALL SITES"]
[]
[{"$nulls":6},"Schedule A: P&G"]
["Item","Payment","Description","Unit","Qty","Rate","Amount"]
["No.","Refers"]
[]
[null,null,"PRELIMINARY & GENERAL FIXED CHARGES"]
[]
[null,null,"PRELIMINARY & GENERAL FIXED CHARGES"]
[]
["1.1",null,"Site Establishment and Facilities                                                       ","Sum",1]
["1.2",null,"Plant and Equipment","Sum",1]
["1.3",null,"Project Management & Contract Administration","Sum",1]
["1.4",null,"Contractual Obligation","Sum",1]
[]
[1.5,null,"Documentation"]
[]
["1.5.1",null,"Documentation (Automation, Architecture, Electrical, Civil and Mechanical) including but not limited to the list below:","Sum",1]
["1.5.2",null,"Design Documents (including Design Philosophy, Calculations, Drawings, Schedules, etc.)","Sum",1]
["1.5.3",null,"Cold and Hot Commissioning Documentation","Sum",1]
["1.5.4",null,"Operating and Maintenance Manuals","Sum",1]
["1.5.5",null,"Data Books","Sum",1]
[]
[1.6,null,"Provisional Sums"]
[]
["1.6.1",null,"Provisional sum for relocation of existing services ","Prov. Sum",1,{"v":500000,"d":"500,000.00"},{"v":500000,"d":"500,000.00"}]
["1.6.2",null,"Contractors mark-up on item 1.6.1 above.","%"]
[]
["1.6.3",null,"Provisional sum for supervision during the contract","Prov.Sum",1,{"v":2000000,"d":"2,000,000.00"},{"v":2000000,"d":"2,000,000.00"}]
["1.6.4",null,"Contractors mark-up on item 1.6.3 above.","%"]
[]
["1.6.5",null,"Provisional sum for testing equipment prior to installation. (As and when required).","Prov. Sum",1,{"v":1500000,"d":"1,500,000.00"},{"v":1500000,"d":"1,500,000.00"}]
["1.6.6",null,"Contractors mark-up on item 1.6.5 above.","%"]
[]
["1.6.7",null,"Provisional sum for review of all equipment against the manufacturers specification & operational capacity.","Prov. Sum",null,{"v":1500000,"d":"1,500,000.00"},{"v":1500000,"d":"1,500,000.00"}]
["1.6.8",null,"Contractors mark-up on item 1.6.7 above.","%"]
[]
[]
[1.7,null,"Legislative Requirements"]
[]
["1.7.1",null,"Full compliance to legislative requirements as well as Rand Water and External Standards referred to in this contract document. This shall include but not limited to the list below:","Sum",1]
[{"$nulls":3},"Sum",1]
["1.7.2",null,"Environmental Management Plan","Sum",1]
["1.7.3",null,"Quality Control Plan","Sum",1]
["1.7.4",null,"Rand Water and External Standard referred to in this contract document","Sum",1]
["1.7.5",null,"Other Legislative Requirements (Specify)","Sum",1]
["1.7.6",null,null,"Sum",1]
[]
["1.8",null,"Training of Rand Water Personnel (Inclusive of training manuals)","Sum",1]
{"$rows_empty":8}
[null,null,"Schedule A Carried Forward",{"$nulls":3},{"$f":"SUM(G51:G57)","v":{"v":0,"d":"R 0.00"}}]
[]
[]
[]
[null,null,"Schedule A Brought Forward to Summary"]
{"$rows_empty":14}
[{"$nulls":15},{"$f":"208000*0.1","v":20800},{"$f":"P78/10","v":2080}]

{"sheet":"Schedule B - Automation","index":1,"n_rows":55,"n_cols":9,"rows_kept":55,"merged":[[1,1,1,8],[2,11,2,13],[3,11,3,13],[4,0,5,0],[4,1,5,1],[4,5,5,5],[4,6,5,6],[4,7,5,7]]}
[]
[null,{"$f":"'Schedule A - P&G'!B2:G2","v":"TENDER FOR DESIGN, SUPPLY, DELIVERY, INSTALLATION, TESTING, COMMISSIONING AND PUT INTO OPERATION OF THE NEW BASE RADIOS FOR OPERATIONS AND RISK CONTROL AT ALL SITES"}]
[]
[{"$nulls":8},"Schedule B: Automation"]
["Item   No.","System Specifcation Clause","Description","Unit","Qty","Design Rate","Manufacture, Supply & Delivery Rate","Installation, Configuration, Testing & Commissioning Rate","Total Amount"]
[]
[null,null,"Automation Equipment"]
[1,"SS 3.2.1.1\n","The Contractor shall design and supply all Automation design requirements and quality documents including, but not limited to all the items",1,"Sum"]
[2,"SS 3.2.1.2\n","The Contractor shall be responsible for the correctness of the installation (comply with Automation Asset Management Standard Specification (SAM-AAM-00003-Rev-02).",1,"Sum"]
[3,"SS 3.2.1.3","The Contractor shall produce all drawings according to Electrical Drawings Standards Specification (RW_EES_002-REV-A).",1,"Sum"]
[4,"SS 3.2.2.1.1","The Contractor shall put into operation one (1) latest generation Link Repeater Radio System in Forest Hill Depot complete with power supply and all ancillary items.",1,"Sum"]
[5,"SS 3.2.2.2.1","The Contractor shall put into operation one (1) latest generation Link Repeater Radio System in Forest Hill Depot complete with power supply and all ancillary items.",1,"Sum"]
[6,"SS 3.2.3.1.1","The Contractor shall put into operation one (1) latest generation Link Repeater Radio System in Akasia Reservoir Rosslyn complete with power supply and all ancillary items.",1,"Sum"]
[7,"SS 3.2.4.1.1","The Contractor shall put into operation one (1) new latest generation main Base Station Radio in Head Office Radio Tower, complete with all ancillary items.",1,"Sum"]
[8,"SS 3.2.4.2.1","The Contractor shall put into operation one (1) new latest generation main Base Station Radio in Head Office Radio Tower, complete with all ancillary items.",1,"Sum"]
[9,"SS 3.2.5.1.1","The Contractor shall put into operation one (1) new latest generation main Base Station Radio, complete with all ancillary items.",1,"Sum"]
[10,"SS 3.2.5.2.1","The Contractor shall put into operation one (1) new latest generation main Base Station Radio, complete with all ancillary items.",1,"Sum"]
[11,"SS 3.2.6.1.1","The Contractor shall put into operation one (1) new latest generation Base Station Radio complete with all ancillary items",1,"Sum"]
[12,"SS 3.2.6.2.1","The Contractor shall put into operation one (1) new latest generation Base Station Radio complete with all ancillary items.",1,"Sum"]
[13,"SS 3.2.7.1.1","The Contractor shall put into operation one (1) new latest generation Base Station Radio complete with all ancillary items.",1,"Sum"]
[14,"SS 3.2.7.2.1","The Contractor shall put into operation one (1) new latest generation Base Station Radio complete with all ancillary items.",1,"Sum"]
[15,"SS 3.2.8.1.1","The Contractor shall put into operation one (1) new latest generation Base Station Radio complete with all ancillary items.",1,"Sum"]
[16,"SS 3.2.8.2.1","The Contractor shall put into operation one (1) new latest generation Base Station Radio complete with all ancillary items.",1,"Sum"]
[17,"SS 3.2.8.3.1","The Contractor shall put into operation one (1) new latest generation Base Station Radio complete with all ancillary items.",1,"Sum"]
[18,"SS 3.2.9.1.1","The Contractor shall put into operation one (1) new latest generation Base Station Radio complete with all ancillary items.",1,"Sum"]
[19,"SS 3.2.9.2.1","The Contractor shall put into operation one (1) new latest generation Base Station Radio complete with all ancillary items.",1,"Sum"]
[20,"SS 3.2.10.1.1","The Contractor shall put into operation one (1) new latest generation Base Station Radio complete with all ancillary items.",1,"Sum"]
[21,"SS 3.2.10.2.1","The Contractor shall put into operation one (1) new latest generation Base Station Radio complete with all ancillary items.",1,"Sum"]
[22,"SS 3.2.11.1.1","The Contractor shall put into operation one (1) new latest generation Base Station Radio complete with all ancillary items.",1,"Sum"]
[23,"SS 3.2.11.2.1","The Contractor shall put into operation one (1) new latest generation Base Station Radio complete with all ancillary items.",1,"Sum"]
[24,"SS 3.2.12.1.1","The Contractor shall put into operation one (1) new latest generation Base Station Radio complete with all ancillary items.",1,"Sum"]
[25,"SS 3.2.13.1.1","The Contractor shall put into operation one (1) new latest generation Base Station Radio complete with all ancillary items.",1,"Sum"]
[26,"SS 3.2.13.2.1","The Contractor shall put into operation one (1) new latest generation Base Station Radio complete with all ancillary items.",1,"Sum"]
[27,"SS 3.2.14.1.1","The Contractor shall put into operation one (1) new latest generation Base Station Radio complete with all ancillary items.",1,"Sum"]
[28,"SS 3.2.14.2.1","The Contractor shall put into operation one (1) new latest generation Base Station Radio complete with all ancillary items.",1,"Sum"]
[29,"SS 3.2.15.1.1","The Contractor shall put into operation one (1) new latest generation Base Station Radio complete with all ancillary items.",1,"Sum"]
[30,"SS 3.2.15.2.1","The Contractor shall put into operation one (1) new latest generation Base Station Radio complete with all ancillary items.",1,"Sum"]
[31,"SS 3.2.16.1.1","The Contractor shall put into operation one (1) new latest generation Base Station Radio complete with all ancillary items.",1,"Sum"]
[32,"SS 3.2.16.2.1","The Contractor shall put into operation one (1) new latest generation Base Station Radio complete with all ancillary items.",1,"Sum"]
[33,"SS 3.2.17.1.1","The Contractor shall put into operation one (1) new latest generation Base Station Radio complete with all ancillary items.",1,"Sum"]
[34,"SS 3.2.17.2.1","The Contractor shall put into operation one (1) new latest generation Base Station Radio complete with all ancillary items.",1,"Sum"]
[35,"SS 3.2.18.1.1","The Contractor shall put into operation one (1) new latest generation Base Station Radio complete with all ancillary items.",1,"Sum"]
[36,"SS 3.2.18.2.1","The Contractor shall put into operation one (1) new latest generation Base Station Radio complete with all ancillary items.",1,"Sum"]
[37,"SS 3.2.19.1.1","The Contractor shall put into operation one (1) new latest generation Base Station Radio complete with all ancillary items.",1,"Sum"]
[38,"SS 3.2.19.2.1","The Contractor shall put into operation one (1) new latest generation Base Station Radio complete with all ancillary items.",1,"Sum"]
[39,"SS 3.2.20.1.1","The Contractor shall put into operation one (1) new latest generation Base Station Radio complete with all ancillary items.",1,"Sum"]
[]
[]
[]
[]
[null,null,"Schedule B Carried Forward"]
[]
[]
[]
[null,null,"Schedule B Brought Forward to Summary"]

{"sheet":"Schedule C - Electrical","index":2,"n_rows":45,"n_cols":11,"rows_kept":45,"merged":[[1,1,1,10],[3,9,3,10],[3,13,3,15],[4,0,5,0],[4,1,5,1],[4,5,5,5],[4,6,5,6],[4,7,5,7],[4,8,5,8],[4,9,5,9],[44,2,44,9]]}
[]
[null,{"$f":"'Schedule A - P&G'!B2:G2","v":"TENDER FOR DESIGN, SUPPLY, DELIVERY, INSTALLATION, TESTING, COMMISSIONING AND PUT INTO OPERATION OF THE NEW BASE RADIOS FOR OPERATIONS AND RISK CONTROL AT ALL SITES"}]
[]
[{"$nulls":9},"Schedule C: Electrical"]
["Item   No.","Payment Refers","Description","Qty","Unit","Detail Design","Manufacture,  Supply & Test ","Delivery of Equipment","Installation and Construction","Putting into service & Commissioning","Total Amount"]
[]
[null,null,"Electrical works"]
["1",null,"Design electrical installation (and all plant components) in accordance with the functional requirements, design criteria, the design procedure set out in the Contract documentation, the design deliverables document and in accordance with the \"Guideline scope of services\" (as published by the Engineering Council of South Africa). To include all analyses, reports, calculations, drawings and documents, as-built (record) drawings, close-out reports and manuals",1,"Lot"]
[2,null,"Upstream supply circuit breakers in various plants of Rand Water",18,"Each"]
["3.1",null,"Completely populated Distribution Kiosk ",2,"Each"]
["3.2",null,"Manufacturing and FAT Tessting",1,"Lot"]
["3.3",null,"Delivery and offloading ",1,"Lot"]
["4.1",null,"Completely populated SP&L Distribution  Boards",5,"Each"]
["4.2",null,"Manufacturing and FAT Tessting",1,"Lot"]
["4.3",null,"Delivery and offloading ",1,"Lot"]
["5.1",null,"Din mounted UPS to supply Automation equipment",5,"Each"]
["5.2",null,"Delivery and offloading ",1,"Lot"]
[6,null,"Complete small power and lighting in all new and existing building",5,"Each"]
[7,null,"Delivery and offloading ",1,"Lot"]
[8,null,"Service detection at various plants on possible cable routes and kiosks location",1,"Lot"]
[9,null,"Trenching (800mm x 500mm), backfilling as per specification and 110 mm cable sleeves.",1,"Lot"]
[10,null,"Service crossings with sleeves as per specification",1,"Lot"]
[11,null,"Earthing and lightning protection installation and new building",1,"Lot"]
[12,null,"PVC insulated earthing and bonding earth wire and applicable glands/ termination kits ",1,"Lot"]
["13.1",null,"PVC PVC SWA stranded copper cable and applicable glands/ termination kits for complete plants",1,"Lot"]
["13.2",null,"Delivery and offloading ",1,"Lot"]
[14,null,"Cable Racking",1,"Lot"]
[15,null,"Pressure test (Megger at 1000V) for the complete cable installation",1,"Lot"]
["16.1",null,"Provide cable  route markers for cables buried underground and not at remote areas/plants",1,"Lot"]
["16.2",null,"Delivery and offloading "]
[17,null,"Complete all WKS code numbering of wires and cables.",1,"Lot"]
[18,null,"Update of all applicable drawings in AutoCAD",1,"Lot"]
[19,null,"Electrical commissioning and hand over the complete plant, complete with approved “As built” drawings in AutoCAD ",1,"Sum"]
[20,null,"Hand over the plant, complete with approved “As built” drawings ",1,"Sum"]
[21,null,"Supply maintenance and operating manuals.",1,"Lot"]
[22,null,"Certificate of Compliance (COC) for the entire installations.",1,"Lot"]
[23,null,"Maintenance during the Defects Liability period",1,"Sum"]
[24,null,"Installation, Commissioning and Putting into service   ",1,"Lot"]
[null,null,"Any other items that needs to be included and have been left out:"]
[]
[null,null,"Schedule C Carried Forward"]
[]
[]
[]
[null,null,"Schedule C Brought Forward to Summary"]

{"sheet":"Schedule D - Civil","index":3,"n_rows":30,"n_cols":9,"rows_kept":30,"merged":[[1,1,1,8],[3,11,3,13],[4,0,5,0],[4,1,5,1],[4,5,5,5],[4,6,5,6],[4,7,5,7],[18,3,18,8]]}
[{"$nulls":8},{"$f":"'Schedule A - P&G'!G1","v":{"v":0,"d":"R0.00"}}]
[null,{"$f":"'Schedule A - P&G'!B2:G2","v":"TENDER FOR DESIGN, SUPPLY, DELIVERY, INSTALLATION, TESTING, COMMISSIONING AND PUT INTO OPERATION OF THE NEW BASE RADIOS FOR OPERATIONS AND RISK CONTROL AT ALL SITES"}]
[]
[{"$nulls":8},"Schedule D: Civil"]
["Item   No.","Payment Refers","Description","Qty","Unit","Design Rate","Manufacture, Supply & Delivery Rate","Installation, Construction, Testing & Commissioning Rate","Total Amount"]
[]
[null,null,"CIVIL WORKS"]
[1,null,"PRELIMINARY AND GENERAL",1,"Sum"]
[2,null,"SERVICE DETECTION, PROTECTION AND/OR RELOCATION OF EXISTING SERVICES",1,"Sum"]
[3,null,"PRELIMINARY DESIGN",1,"Sum"]
[4,null,"DETAILED DESIGN ",1,"Sum"]
[5,null,"AS-BUILT DRAWINGS",1,"Sum"]
[6,null,"CONSTRUCTION OF AUTOMATION KIOSKS AND APRON SLABS",1,"Sum"]
[7,null,"CONSTRUCTION OF MONOPOLE FOUNDATIONS",1,"Sum"]
[8,null,"DESIGN, SUPPLY AND INSTALLATION OF MONOPOLES AND ACCESS LADDERS",1,"Sum"]
[9,null,"CONSTRUCTION OF FOUNDATIONS FOR ELECTRICAL KIOSKS",1,"Sum"]
[10,null,"STORMWATER DESIGN AND CONSTRUCTION",1,"Sum"]
[11,null,"CLEARING, DISPOSAL OF DEBRIS AND REINSTATEMENT OF SITE",1,"Sum"]
[12,null,"All other Civil Work not stated above which may be required to complete the Installation must be detailed below (including risk mitigation and safety) "]
[]
[]
[]
[]
[]
[null,null,"Schedule D Carried Forward",{"$nulls":5},{"$f":"SUM(I8:I17)","v":{"v":0,"d":"R0.00"}}]
[]
[]
[]
[]
[null,null,"Schedule D Brought Forward to Summary"]

{"sheet":"Schedule E - Architecture","index":4,"n_rows":81,"n_cols":9,"rows_kept":81,"merged":[[1,1,1,8],[4,0,5,0],[4,1,5,1],[4,5,5,5],[4,6,5,6],[4,7,5,7]]}
[]
[null,{"$f":"'Schedule A - P&G'!B2:G2","v":"TENDER FOR DESIGN, SUPPLY, DELIVERY, INSTALLATION, TESTING, COMMISSIONING AND PUT INTO OPERATION OF THE NEW BASE RADIOS FOR OPERATIONS AND RISK CONTROL AT ALL SITES"}]
[]
[{"$nulls":8},"Schedule E: Architectural"]
["Item   No.","Description","Unit","Qty","Design Rate","Manufacture, Supply & Delivery Rate","Installation, Configuration, Testing & Commissioning Rate","Total Amount"]
[]
["8.1","Please refer to the Architectural specification details, and Architectural Drawings in order to price for below items. The Contractor’s responsibilities under this project include, but are not limited to, the following items:"]
["8.2","Design: "]
["8.2.1","Architectural detailed designs of the whole building building as shown on the drawings for Zuikerbosch","Sum",1]
[]
["8.3"]
["8.3.1","Demolitions & Renovations:"]
[]
["8.4","Acasia"]
["8.4.2","Clean up over grown new fenced area at Acasia","Sum",1]
["8.4.3","Provide high security fencing , gate and high security locking mechanism","Sum",1]
["8.4.4","Break out existing steel safe door at Acasia & make good","Sum",1]
["8.4.5","Supply, deliver and install new high security externally rated \"safe\" type door at Acasia","Sum",1]
["8.4.6","Supply, deliver and install 6mm painted steel plate bolted to existing brickwork and ceiling soffit, as well as cut outs at Acasia","Sum",1]
["8.4.7","Make good all damaged brick work to match at Acasia","Sum",1]
["8.5","Refurbish and make good the plastered & painted internal portion of the structure and ceiling to match.","Sum",1]
[]
["8.5.1","Rietvlei","Sum",1]
["8.5.2","Provide Architectural survey drawings of the existing building and fenced  area","Sum",1]
["8.5.3","Clean up  existing over grown fenced area at Rietvlei ","Sum",1]
["8.5.4","Make good all damaged brick work to match at Rietvlei","Sum",1]
["8.5.5","Supply, deliver and install 6mm painted steel plate bolted to existing brickwork and ceiling soffit at Rietvlei","Sum",1]
["8.5.6","Supply, deliver and install 6mm painted steel plate bolted to existing brickwork and ceiling soffit at Rietvlei","Sum",1]
["8.5.7","Refurbish and make good the plastered & painted internal portion of the structure and ceiling to match.","Sum",1]
[]
["8.6","Forrest Hill"]
["8.6.1","Break out existing timber door at Forrest Hill & make good","Sum",1]
["8.6.2","Supply, deliver and install steel security frame & doors.","Sum",1]
["8.6.3","Supply, deliver and install paint to internal walls ","Sum",1]
["8.6.4","Supply, deliver and install paint to metal frames","Sum",1]
["8.6.5","Supply, deliver and install paint to external plaster band","Sum",1]
[]
["8.7","Palmiet  "]
["8.7.1","Make good the existing equipment room refurbish & renovate to match.","Sum",1]
[]
["8.8","Construction:"]
["8.8.2","Palmiet - New structure","Sum",1]
["8.8.3","Construction of walls with Corobrick Country Cottage face bricks","Sum",1]
["8.8.4","Construction of roof structure ","Sum",1]
["8.8.5","Supply, deliver and install metal door frames","Sum",1]
["8.8.6","Supply, deliver and install iron mongery","Sum",1]
["8.8.7","Supply deliver & install winblok concrete window frames","Sum",1]
["8.8.8","Supply deliver & install powder coated aluminium windows","Sum",1]
["8.8.9","Supply deliver & install steel burglar bars to fit on windows","Sum",1]
["8.8.10","Supply, deliver and install powder coated al weather proof grills with insect mesh","Sum",1,null,{"$f":"SUM(F8:F48)","v":0}]
["8.8.11","Supply, deliver and install granolithic floor finish","Sum",1]
["8.8.12","Supply, deliver and install epoxy floor finish","Sum",1]
["8.8.13","Supply, deliver and install 75mm meranti skiting","Sum",1]
[]
[8.9,"Construction:"]
["8.9.2","Zuikerbosch - New structure","Sum",1]
["8.9.3","Construction of walls with Corobrick Country Cottage face bricks","Sum",1]
["8.9.4","Construction of roof structure ","Sum",1]
["8.9.5","Supply, deliver and install metal door frames","Sum",1]
["8.9.6","Supply, deliver and install iron mongery","Sum",1]
["8.9.7","Supply deliver & install winblok concrete window frames","Sum",1]
["8.9.8","Supply deliver & install powder coated aluminium windows","Sum",1]
["8.9.9","Supply deliver & install steel burglar bars to fit on windows","Sum",1]
["8.9.10","Supply, deliver and install powder coated al weather proof grills with insect mesh","Sum",1]
["8.9.11","Supply, deliver and install granolithic floor finish","Sum",1]
["8.9.12","Supply, deliver and install epoxy floor finish","Sum",1]
["8.9.13","Supply, deliver and install 75mm meranti skiting","Sum",1]
[]
["8.10","Commissioning and handover","Sum",1]
[]
[null,"TOTAL SUMMARY OF 8 PRICE SCHEDULE 8 CIVIL, STRUCTURAL & ARCHITECTURAL excluding Value-Added Tax (VAT) to be carried to - Final summary of Price Schedules 8: Civil, Structural & Architectural bills of quantities"]
[]
[]
[]
[]
[null,"Schedule E Carried Forward"]
[]
[]
[]
[]
[null,"Schedule E Brought Forward to Summary"]

{"sheet":"Schedule F - Quality","index":5,"n_rows":30,"n_cols":7,"rows_kept":30,"merged":[[1,1,1,6],[3,9,3,11],[6,7,6,8],[7,7,7,8],[8,7,8,8],[9,7,9,8],[10,7,10,8],[11,7,11,8],[12,7,12,8]]}
[]
[null,{"$f":"'Schedule A - P&G'!B2:G2","v":"TENDER FOR DESIGN, SUPPLY, DELIVERY, INSTALLATION, TESTING, COMMISSIONING AND PUT INTO OPERATION OF THE NEW BASE RADIOS FOR OPERATIONS AND RISK CONTROL AT ALL SITES"}]
[]
[{"$nulls":6},"Schedule F: Quality"]
["Item   No.","SAM QA 00030 PR-Spec Clause ","Description","Qty","Unit","Rate","Total Amount"]
[null,null,"Quality Control and Assurance "]
[1,7.1,"The contractor shall prepare and submit the  Quality Management Plan (CQMP), for review and approval prior to commencement of works",1,"Sum"]
[2,7.3,"The contractor shall conduct tests as per the approved Quality Control Plan or Inspection Test Plan activities not specified in the BOQ but included in the QCP/ITP ",1,"Sum"]
[3,"7.5.5","The contractor shall provide a qualified Quality Officer relevant to the scope of work  ",1,"Sum "]
[null,7.4,"The contractor shall Maintain the project  documents for the duration of the project ",1,"Sum"]
[4,"7.5.4","The contractor shall ensure that the  testing Equipment are calibrated and keep resord of the calibration certificates for the project duration ",1,"Sum"]
[5,7.6,"The contractor shall ensure that the special process technician ,artisan are qualified by the accredited body periodically ",1,"Sum "]
[6,7.6,"The contractor shall make provision of any other  testing and inspections requested and appoved  by the Engineer",1,"Sum"]
{"$rows_empty":12}
[null,null,"Schedule F Carried Forward"]
[]
[]
[]
[null,null,"Schedule F Brought Forward to Summary"]

{"sheet":"Schedule G- Health and Safety ","index":6,"n_rows":72,"n_cols":7,"rows_kept":72,"merged":[[1,1,1,6],[3,9,3,11],[5,2,6,2],[5,6,6,6],[49,3,49,5],[74,5,74,6]]}
[]
[null,{"$f":"'Schedule A - P&G'!B2:G2","v":"TENDER FOR DESIGN, SUPPLY, DELIVERY, INSTALLATION, TESTING, COMMISSIONING AND PUT INTO OPERATION OF THE NEW BASE RADIOS FOR OPERATIONS AND RISK CONTROL AT ALL SITES"}]
[]
[{"$nulls":6},"Schedule G: Health and Safety"]
["Item   No.","Payment refers","Description","Qty","Unit","Rate","Total Amount"]
[null,null,"Occupational Health and Safety"]
[]
["C.01",null,"Preparation of the Contractor's site specific Health and Safety Plan","  lump sum"]
[]
["C.02",null,"Principal Contractor's initial obligations in respect of the Occupational Health and Safety Act and Construction Regulations","  lump sum"]
[]
["C.03",null,"Principal Contractor's time related obligations in respect of the Occupational Health and Safety Act and Construction Regulations","  month"]
[]
["C.04",null,"Provision of Personal Protective Equipment (PPE)"]
[]
["C.05",null,"Provision of a full-time Construction Health and Safety Officer"," month"]
[]
["C.06",null,"Cost of medical certificates and medical surveillance"]
[]
[null,null,"(a) Initial (baseline) medical examinations","lump sum"]
[]
[null,null,"(b) Periodic  examinations","lump sum"]
[]
[null,null,"(c)Exit examinations","lump sum"]
[]
["C.07",null,"Induction training","lump sum"]
[]
["C.08",null,"Provision of First Aid Boxes to GSR requirements and other emergency safety equipment such as fire extinguishers.","lump sum"]
[]
["C.09",null,"Transportation of Workers","lump sum"]
[]
["C.10",null,"Welfare Facilities","lump sum"]
[]
["C.11",null,"Occupational Hygiene Surveys","lump sum"]
[]
["C.12",null,"Training","lump sum"]
[]
["C.13",null,"Security requirements including the security risk assessment (before site establishment)","  lump sum"]
[]
["C.14",null,"Employee wellness programs","lump sum"]
[]
["C.15",null,"Drug and Alcohol Testing, Policies and Procedures","lump sum"]
[]
["C.16",null,"Barricading","lump sum"]
[]
["C.17",null,"Safety notices and signs","lump sum"]
[]
["C.18",null,"SHE  Incentives","lump sum"]
[]
["C.19",null,"COVID-19 Prevention and Management: The Engineer to advise at the relevant stage after award","PC SUM"]
[]
["C.20",null,"Adequate ventilation and lighting during construction","lump sum"]
[]
["C.21",null,"Submission of the Health and Safety File (hard and soft copies)","lump sum"]
{"$rows_empty":13}
[null,null,"Schedule G Carried Forward"]
[]
[]
[]
[null,null,"Schedule G Brought Forward to Summary"]

{"sheet":"Schedule H - Environment","index":7,"n_rows":54,"n_cols":7,"rows_kept":54,"merged":[[1,1,1,6],[2,9,2,11],[3,9,3,11],[5,5,5,6],[10,0,14,0],[20,0,25,0],[27,0,29,0],[48,5,48,6],[49,5,49,6],[50,5,50,6],[51,5,51,6],[52,5,52,6],[53,5,53,6],[54,5,54,6],[55,5,55,6],[56,5,56,6]]}
[]
[null,{"$f":"'Schedule A - P&G'!B2:G2","v":"TENDER FOR DESIGN, SUPPLY, DELIVERY, INSTALLATION, TESTING, COMMISSIONING AND PUT INTO OPERATION OF THE NEW BASE RADIOS FOR OPERATIONS AND RISK CONTROL AT ALL SITES"}]
[]
[{"$nulls":6},"Schedule H: Environmental"]
["Item   No.","Payment refers","Description","Qty","Unit","Rate","Total Amount"]
[null,null,"Environment"]
[1,7.1,"Administrative requirements as per environmental specification.                                             • Understanding of compliance\n• Preparation of environmental file and work program approval.\n• Preparations of method statements\n• Maintaining of auditing of site compliances\n• Reporting of environmental incidence\n• Signing off of work for payment \n• Emergency preparedness retainement for external services\n• Programme scheduling details of administrative matters:\n","Sum",1]
[]
[2,"7.1.1","Appointment of a qualified on site environmental officer with a minimum of one year’s appropriate experience","rate",1]
[null,7.2,"Emergency preparedness funding"]
[3,null,"a)          Provision for bee, snake and other fauna removal","Sum",1]
[null,null,"b)          Provision for hydrocarbon spillages that require intervention from professional clean up provider"]
[null,null,"c)           Provision to clean up sewage spillages"]
[null,null,"d)          Equipment for fire fighting"]
[null,null,"e)          Call out of fire department"]
[4,7.3,"Environmental awareness and training ",null,1]
[null,null,"The rate for this item shall include costs for environmental awareness and training","Sum",1]
[5,7.4,"Social integration of the project to the public "]
[null,null,"The rate for this item shall include costs for establishment of construction campsite and working areas","Sum",1]
[6,7.5,"Establishment of site camp and works area.","Sum",1]
[7,null,"Signage The rate for this item must cover all expenses incurred in preparing signage at the entrance of the site offices indicating the following information ","Sum",1]
[null,null,"·        The contractor’s contact numbers"]
[null,null,"·        Authorisations details"]
[null,null,"·        ECO details "]
[null,null,"·        Emergency numbers and provision for: – snake removal, bee removal, fire, large hydrocarbon spillages, sewerage spillages"]
[null,null,"Signage measuring 30mmx30mm must also be made available for no go areas."]
[null,null,"Barricading and demarcation","sum",1]
[8,null,"a.      Screening for unsightly works"]
[null,null,"b.     Clear demarcating of the working foot print"]
[null,null,"c.      Barricading of sensitive no go areas"]
[]
[null,7.6,"Pollution prevention and preservation of environmental resources ","sum",1]
[null,null,"The rate for this item shall include costs for  pollution prevention and preservation of environmental resources",null,1]
[9,null,"a) Cleaning the site of litter and rubble","rate",1]
[10,null,"b)Weed control on site","rate",1]
[11,null,"C)          Waste bins and receptacles that comply with the waste clauses of the Environmental specification."]
[12,null,"c)  Appropriate skips for waste separation"]
[13,null,"d)General waste Waste removal","Rate per skip",1]
[14,null,"e)Hazardous waste Waste removal","Rate per skip",1]
[15,null,"f)Recycled waste management  Waste removal","Rate per Skip",1]
[16,null,"g) Spillage kits to clean up spillages  ","sum",1]
[17,null,"h) Hard impervious surfaces for storage of chemicals"]
[18,null,"i)Bunding facility for hazardous products"]
[19,null,"J)          Labelled containers for decanting of liquids"]
[{"$nulls":4},1]
[20,7.7,"Preservation of the environment: fauna ,flora, scenic value,  Archaeological artefacts","Lump Sum",1]
[null,null,"Erosion control and silt management The amount shall represent the costs associated with the practice of preventing or controlling wind or water erosion during construction. The erosion control measures must effectively prevent water pollution, soil loss, wildlife habitat loss and human property loss.  The rate shall also include the costs of silt control where devices shall be designed to keep eroded soil on a construction site, so that it does not wash off and cause water pollution to a nearby stream, river, lake, or dam.","Lump Sum",1]
[21,7.8,"Retention provision for final clean up inspection of the site ","rate",1]
[]
[null,null,"Schedule H Carried Forward"]
[]
[]
[]
[null,null,"Schedule H Brought Forward to Summary"]

{"sheet":"Summary","index":8,"n_rows":25,"n_cols":3,"rows_kept":25,"merged":[[1,1,1,2],[2,0,3,2],[4,0,5,0],[4,1,5,1],[4,2,5,2],[21,0,21,1],[22,0,22,1],[23,0,23,1],[25,0,25,1]]}
[{"$f":"'Schedule A - P&G'!A1","v":0},null,{"$f":"'Schedule A - P&G'!G1","v":{"v":0,"d":"R 0.00"}}]
[{"$f":"'Schedule A - P&G'!A2","v":0},{"$f":"'Schedule A - P&G'!B2:G2","v":"TENDER FOR DESIGN, SUPPLY, DELIVERY, INSTALLATION, TESTING, COMMISSIONING AND PUT INTO OPERATION OF THE NEW BASE RADIOS FOR OPERATIONS AND RISK CONTROL AT ALL SITES"}]
["SUMMARY OF BILL OF QUANTITIES"]
[]
["SCHEDULE","DESCRIPTION","AMOUNT"]
[]
[]
["A","Preliminary and General",{"$f":"'Schedule A - P&G'!G59","v":{"v":0,"d":"R 0.00"}}]
["B","Automation",{"$f":"'Schedule A - P&G'!G59","v":{"v":0,"d":"R 0.00"}}]
["C","Electrical ",{"$f":"'Schedule A - P&G'!G59","v":{"v":0,"d":"R 0.00"}}]
["D","Civil",{"$f":"'Schedule A - P&G'!G59","v":{"v":0,"d":"R 0.00"}}]
["E","Architectural",{"$f":"'Schedule A - P&G'!G59","v":{"v":0,"d":"R 0.00"}}]
["F","Quality",{"$f":"'Schedule A - P&G'!G59","v":{"v":0,"d":"R 0.00"}}]
["G","Health and Safety",{"$f":"'Schedule A - P&G'!G59","v":{"v":0,"d":"R 0.00"}}]
["H","Environment",{"$f":"'Schedule A - P&G'!G59","v":{"v":0,"d":"R 0.00"}}]
[]
[]
[]
[]
[]
[]
["SUB TOTAL A",null,{"$f":"SUM(C1:C21)","v":{"v":0,"d":"R 0.00"}}]
["ADD 15% FOR VAT",null,{"$f":"0.15*C22","v":{"v":0,"d":"R 0.00"}}]
["TOTAL",null,{"$f":"SUM(C22:C23)","v":{"v":0,"d":"R 0.00"}}]
[null,"Total Carried forward to the Form of Offer of the Commercial Document"]

{"sheet":"Mechanical","index":9,"n_rows":0,"n_cols":0,"rows_kept":0,"hidden":true,"merged":[[5,0,6,0],[5,1,6,2],[5,3,6,3],[5,4,6,4],[5,5,6,5],[5,6,6,6],[7,1,7,2],[8,1,8,2],[9,1,9,2],[10,1,10,2],[11,1,11,2],[12,1,12,2],[13,1,13,2],[14,1,14,2],[15,1,15,2],[16,0,17,0],[16,1,16,2],[16,3,17,3],[16,4,17,4],[16,5,17,5],[16,6,17,6],[16,7,17,7],[17,1,17,2],[18,0,19,0],[18,1,19,2],[18,3,19,3],[18,4,19,4],[18,5,19,5],[18,6,19,6],[18,7,19,7],[20,1,20,2],[21,1,21,2],[22,1,22,2],[23,1,23,2],[24,1,24,2],[25,1,25,2],[26,1,26,2],[27,1,27,2],[28,1,28,2],[29,1,29,2],[30,1,30,2],[31,1,31,2],[32,1,32,2],[33,1,33,2],[34,1,34,2],[35,1,35,2],[36,1,36,2],[37,0,37,5],[42,0,42,6],[45,1,45,7]]}